bitfinex/quotes_ETHUSD_20251111
["timestamp","ask_amount","ask_price","bid_price","bid_amount"]
[1762859319405,0.4748,3576.3,3575.8,0.001]
[1762859319587,2.79604938,3576.5,3576.0,0.405504]
[1762859319793,0.4062,3576.1,3576.0,0.405504]
[1762859320368,0.8932,3576.1,3576.0,0.405504]
[1762859320580,0.8932,3576.1,3575.8,0.406504]
[1762859320782,0.487,3576.1,3576.0,0.405504]
[1762859321305,0.894,3576.1,3575.8,0.001]
[1762859321599,0.403,3575.9,3575.8,0.406504]
[1762859321816,0.5902,3575.9,3575.8,0.001]
[1762859322180,1.078,3575.9,3575.8,0.001]
[1762859323185,0.645,3576.2,3575.9,3.20193343]
[1762859323380,0.645,3576.2,3576.0,3.27137574]
[1762859323919,0.645,3576.2,3575.9,0.405504]
[1762859323920,0.4182,3576.1,3575.9,3.20195392]
[1762859324070,1.1328,3576.2,3576.0,0.405504]
[1762859324406,0.645,3576.2,3575.9,0.405504]
[1762859324604,0.4182,3576.0,3575.9,0.405504]
[1762859325171,0.4182,3576.0,3575.8,0.406504]
[1762859325474,0.4871,3576.1,3575.9,0.405504]
[1762859325675,0.4871,3576.1,3575.9,3.20199255]
[1762859325894,0.4189,3576.0,3575.9,3.20199255]
[1762859326628,0.4189,3576.0,3575.8,3.20301455]
[1762859326773,0.0042,3575.9,3575.8,3.20301455]
[1762859326973,0.645,3576.2,3575.8,0.001]
[1762859327216,0.4878,3576.1,3576.0,0.405504]
[1762859327393,0.906,3576.1,3576.0,0.405504]
[1762859327572,0.4182,3576.1,3576.0,0.405504]
[1762859328276,0.4174,3576.1,3576.0,0.405504]
[1762859328597,0.4174,3576.1,3575.8,0.406504]
[1762859328792,0.4748,3575.9,3575.8,0.001]
[1762859329205,0.9052,3575.9,3575.8,0.001]
[1762859329428,1.0924,3575.9,3575.8,0.001]
[1762859330012,1.0924,3575.9,3575.8,0.406504]
[1762859330380,0.662,3575.9,3575.8,3.20308098]
[1762859330700,0.4748,3575.9,3575.8,3.20308098]
[1762859330901,0.4748,3575.9,3575.8,0.406504]
[1762859331491,0.645,3576.2,3575.9,3.2019553]
[1762859331790,0.645,3576.2,3575.9,0.405504]
[1762859332100,0.4748,3575.9,3575.8,0.406504]
[1762859332495,0.4748,3575.9,3575.8,3.20308098]
[1762859332698,0.4304,3576.1,3575.8,0.406504]
[1762859333013,0.4743,3575.9,3575.8,0.406504]
[1762859333476,1.0923,3575.9,3575.8,0.406504]
[1762859334021,1.0923,3575.9,3575.8,0.001]
[1762859334174,1.0923,3575.9,3575.8,0.406504]
[1762859335089,0.6615,3575.9,3575.8,0.001]
[1762859335508,0.645,3576.2,3575.8,3.69256399]
[1762859335730,2.99412775,3576.9,3575.8,0.896004]
[1762859336033,0.4932,3576.6,3576.2,2.79625838]
[1762859336406,0.4158,3576.3,3576.2,0.405504]
[1762859337034,0.8732,3576.3,3576.2,0.405504]
[1762859337533,1.5172,3576.3,3576.2,0.405504]
[1762859337730,1.0598,3576.3,3576.2,3.20176819]
[1762859338231,0.4158,3576.3,3576.2,3.20176819]
[1762859338433,0.644,3576.3,3576.2,3.20176819]
[1762859338742,1.0953,3576.3,3576.2,0.405504]
[1762859338940,0.9086,3576.3,3576.2,0.405504]
[1762859339249,1.0953,3576.3,3576.2,0.405504]
[1762859340057,1.0953,3576.3,3576.2,3.20176819]
[1762859340402,0.19840001,3576.9,3576.3,0.405504]
[1762859340754,0.19840001,3576.9,3576.6,0.405504]
[1762859340906,0.644,3576.8,3576.6,0.405504]
[1762859341106,0.4513,3576.7,3576.5,0.405504]
[1762859341455,1.1013,3576.8,3576.6,0.405504]
[1762859341633,0.644,3576.7,3576.6,3.2014439]
[1762859342135,0.19840001,3576.9,3576.6,0.405504]
[1762859342338,0.644,3576.7,3576.6,3.20145546]
[1762859342536,0.644,3576.7,3576.5,3.20150139]
[1762859343364,0.4775,3576.6,3576.4,0.405504]
[1762859343822,0.4775,3576.6,3576.2,1.665216]
[1762859343823,0.0043,3576.5,3576.2,1.665216]
[1762859344035,0.0043,3576.5,3576.4,0.405504]
[1762859344410,0.0043,3576.5,3576.4,3.20161181]
[1762859344626,0.0043,3576.5,3576.4,0.405504]
[1762859344952,0.0043,3576.5,3576.4,3.20161181]
[1762859345758,0.0043,3576.5,3576.4,0.405504]
[1762859346114,0.0043,3576.5,3576.4,3.20161181]
[1762859346328,0.0043,3576.5,3576.4,0.405504]
[1762859346618,0.4617,3576.5,3575.9,2.79649878]
[1762859346858,3.43988956,3576.7,3576.1,3.20184638]
[1762859347158,1.1014,3576.7,3576.2,0.405504]
[1762859347326,0.4574,3576.7,3576.2,2.79623629]
[1762859347512,0.644,3576.6,3576.2,0.405504]
[1762859348044,0.002,3576.5,3576.2,0.405504]
[1762859348244,0.002,3576.5,3576.2,3.20176485]
[1762859348865,0.002,3576.5,3576.2,0.405504]
[1762859349033,0.002,3576.5,3576.3,2.79618432]
[1762859349222,0.002,3576.5,3576.2,3.20174301]
[1762859349421,0.002,3576.5,3576.2,0.405504]
[1762859349766,0.002,3576.5,3576.2,3.20176438]
[1762859349931,0.002,3576.5,3576.3,2.79618287]
[1762859350127,0.002,3576.5,3576.2,0.405504]
[1762859350681,0.002,3576.5,3576.3,2.7961353]
[1762859350880,0.002,3576.5,3576.3,2.796186]
[1762859351090,0.002,3576.5,3576.4,3.20161181]
[1762859351293,0.646,3576.5,3576.4,3.68321181]
[1762859352166,0.6452,3576.5,3576.4,3.68321181]
[1762859352379,0.0012,3576.5,3576.4,3.68321181]
[1762859352902,0.0012,3576.5,3576.4,5.23095291]
[1762859353749,0.0012,3576.5,3576.4,4.74925291]
[1762859354508,0.0012,3576.5,3576.4,8.44849579]
[1762859356780,0.0012,3576.5,3576.4,4.74925291]
[1762859357491,0.4787,3576.5,3576.4,0.405504]
[1762859357700,0.0012,3576.5,3576.2,3.69924288]
[1762859357868,0.0012,3576.5,3576.4,0.4816]
[1762859358070,0.0012,3576.5,3576.4,3.68321181]
[1762859358592,0.0012,3576.5,3576.4,7.86415469]
[1762859358886,0.0012,3576.5,3576.4,7.38245469]
[1762859360277,0.9029,3576.5,3576.4,0.405504]
[1762859360478,0.4456,3576.5,3576.4,0.405504]
[1762859360704,0.9029,3576.5,3576.4,0.405504]
[1762859365975,0.4456,3576.5,3576.4,0.405504]
[1762859366175,0.4456,3576.5,3576.4,3.20261181]
[1762859366377,1.0896,3576.5,3576.4,3.20261181]
[1762859367411,0.4456,3576.5,3576.4,0.406504]
[1762859367593,0.4456,3576.5,3576.4,3.20261181]
[1762859368110,0.0012,3576.5,3576.4,3.20261181]
[1762859368310,0.0012,3576.5,3576.4,7.39935469]
[1762859368508,0.0012,3576.5,3576.4,8.90851575]
[1762859369907,0.0012,3576.5,3576.4,8.41891575]
[1762859370106,0.0012,3576.5,3576.4,8.90851575]
[1762859370505,0.0012,3576.5,3576.4,9.55251575]
[1762859373222,0.0012,3576.5,3576.4,10.81222775]
[1762859376232,0.0004,3576.5,3576.4,10.81222775]
[1762859377016,0.0004,3576.5,3576.4,7.11298487]
[1762859383120,0.0004,3576.5,3576.4,7.47105071]
[1762859383643,0.0004,3576.5,3576.4,7.11298487]
[1762859384015,0.01,3577.9,3577.8,2.79501369]
[1762859384229,0.01,3577.9,3577.8,3.20051769]
[1762859384430,0.4316,3577.9,3577.8,3.20051769]
[1762859384818,0.9206,3577.9,3577.8,3.20051769]
[1762859385012,0.4316,3577.9,3577.8,3.20051769]
[1762859385212,0.01,3577.9,3577.8,4.29757958]
[1762859387343,0.01,3577.9,3577.8,5.55729158]
[1762859387546,0.01,3577.9,3577.8,6.69089158]
[1762859399769,0.01,3577.9,3577.8,6.20129158]
[1762859400142,0.4442,3577.9,3577.8,5.70379158]
[1762859400338,0.4442,3577.9,3577.4,3.38913293]
[1762859400339,1.116,3577.9,3577.4,3.38913293]
[1762859400564,0.4809,3577.8,3577.6,2.79516832]
[1762859400754,0.4809,3577.8,3577.3,2.79539424]
[1762859401070,0.4809,3577.8,3577.6,2.79516184]
[1762859401251,0.4809,3577.8,3577.7,0.405504]
[1762859401633,0.9089,3577.8,3577.6,2.79511022]
[1762859401839,0.4809,3577.8,3577.6,2.79510235]
[1762859402059,0.2075,3577.9,3577.7,0.405504]
[1762859402459,0.4724,3577.8,3577.7,0.405504]
[1762859402673,0.9089,3577.8,3577.6,0.405504]
[1762859402874,0.472,3577.7,3577.4,2.79527682]
[1762859403072,0.4809,3577.7,3577.4,2.79527682]
[1762859403275,0.4809,3577.7,3577.4,3.20078082]
[1762859403276,0.428,3577.5,3577.4,3.20078082]
[1762859403445,0.2075,3577.9,3577.6,0.405504]
[1762859403773,0.4809,3577.8,3577.6,3.20065521]
[1762859404074,0.428,3577.7,3577.6,3.20065521]
[1762859404476,0.9084,3577.7,3577.6,3.20065521]
[1762859405342,0.428,3577.7,3577.6,3.20065521]
[1762859405671,0.0112,3577.9,3577.8,3.20051769]
[1762859406177,0.4392,3577.9,3577.8,3.20051769]
[1762859406677,0.9196,3577.9,3577.8,0.405504]
[1762859406873,0.9196,3577.9,3577.8,3.20051769]
[1762859408978,0.9196,3577.9,3577.8,0.405504]
[1762859409471,0.9196,3577.9,3577.8,3.20051769]
[1762859409671,0.9196,3577.9,3577.8,0.405504]
[1762859410057,0.9196,3577.9,3577.8,3.20051769]
[1762859410502,0.4392,3577.9,3577.8,3.20051769]
[1762859411244,0.9196,3577.9,3577.8,3.20051769]
[1762859411874,0.9196,3577.9,3577.8,0.405504]
[1762859412868,0.9196,3577.9,3577.2,0.644]
[1762859413082,0.4809,3577.8,3577.5,0.405504]
[1762859413285,0.4809,3577.8,3576.9,0.001]
[1762859413286,0.644,3577.7,3576.9,0.001]
[1762859413487,3.43909202,3577.7,3576.9,0.001]
[1762859413642,0.428,3577.0,3576.9,0.001]
[1762859413847,0.428,3577.0,3576.9,3.20222096]
[1762859414080,0.9084,3577.0,3576.9,0.406504]
[1762859414961,0.9084,3577.0,3576.9,3.20222096]
[1762859415356,0.9084,3577.0,3576.9,0.406504]
[1762859416754,0.9084,3577.0,3576.9,0.001]
[1762859420661,3.7040388,3577.0,3576.9,0.001]
[1762859423468,4.19565346,3577.0,3576.9,0.001]
[1762859423921,5.45536546,3577.0,3576.9,0.001]
[1762859424300,5.45536546,3577.0,3576.5,0.001]
[1762859424301,4.38176612,3576.6,3576.5,0.001]
[1762859424504,8.41489905,3576.6,3576.5,0.001]
[1762859427600,3.89015146,3576.6,3576.5,0.001]
[1762859427802,4.53415146,3576.6,3576.5,0.001]
[1762859427987,7.92328439,3576.6,3576.5,0.001]
[1762859428179,8.41489905,3576.6,3576.5,0.001]
[1762859428631,9.67461105,3576.6,3576.5,0.001]
[1762859428796,2.79634238,3576.1,3575.8,0.001]
[1762859428998,7.73298997,3576.1,3575.8,0.001]
[1762859429203,8.21708997,3576.1,3575.8,0.001]
[1762859429927,9.47680197,3576.1,3575.8,0.001]
[1762859430988,4.54782544,3575.9,3575.8,0.001]
[1762859431199,5.14302544,3575.9,3575.8,0.001]
[1762859431497,5.62712544,3575.9,3575.8,0.001]
[1762859431899,6.27112544,3575.9,3575.8,0.001]
[1762859433109,5.62712544,3575.9,3575.8,0.001]
[1762859433323,4.51979878,3575.9,3575.8,0.001]
[1762859433532,1.0793,3575.9,3575.8,0.001]
[1762859433820,1.7233,3575.9,3575.8,0.001]
[1762859434022,4.51979878,3575.9,3575.8,0.001]
[1762859434531,6.27112544,3575.9,3575.8,0.001]
[1762859435930,6.38318767,3575.9,3575.8,0.001]
[1762859438935,13.78856665,3575.9,3575.8,0.001]
[1762859440317,9.44187716,3575.9,3575.8,0.001]
[1762859440549,10.08587716,3575.9,3575.8,0.001]
[1762859441204,13.78856665,3575.9,3575.8,0.001]
[1762859444237,9.44187716,3575.9,3575.8,0.001]
[1762859444467,10.08587716,3575.9,3575.8,0.001]
[1762859445952,13.78856665,3575.9,3575.8,0.001]
[1762859446459,13.14456665,3575.9,3575.8,0.001]
[1762859446644,13.78856665,3575.9,3575.8,0.001]
[1762859447027,13.14456665,3575.9,3575.8,0.001]
[1762859447218,13.78856665,3575.9,3575.8,0.001]
[1762859448259,13.78776665,3575.9,3575.8,0.001]
[1762859448960,10.08507716,3575.9,3575.8,0.001]
[1762859449367,9.44107716,3575.9,3575.8,0.001]
[1762859449876,10.08507716,3575.9,3575.8,0.001]
[1762859450240,9.1093625,3575.9,3575.8,0.001]
[1762859450435,10.08507716,3575.9,3575.8,0.001]
[1762859454487,13.78776665,3575.9,3575.8,0.001]
[1762859454685,16.73276665,3575.9,3575.8,0.001]
[1762859455455,16.73276665,3575.9,3575.1,0.01]
[1762859455456,3.20094631,3575.2,3575.1,1e-08]
[1762859455784,13.00165195,3575.2,3575.1,1e-08]
[1762859455982,13.49305195,3575.2,3575.1,1e-08]
[1762859456168,13.60514716,3575.2,3575.1,1e-08]
[1762859456349,9.90245767,3575.2,3575.1,1e-08]
[1762859456751,16.55014716,3575.2,3575.1,1e-08]
[1762859457184,12.84745767,3575.2,3575.1,1e-08]
[1762859457486,16.55014716,3575.2,3575.1,1e-08]
[1762859458552,16.55014716,3575.2,3575.1,0.00100001]
[1762859459258,12.84745767,3575.2,3575.1,0.00100001]
[1762859459707,2.80615929,3574.8,3574.7,1e-08]
[1762859459905,13.25856493,3574.8,3574.7,1e-08]
[1762859460260,13.37067239,3574.8,3574.7,1e-08]
[1762859465169,13.37067239,3574.8,3573.6,0.001]
[1762859465170,2.79822033,3573.7,3573.6,0.001]
[1762859465372,8.90933648,3573.7,3573.6,0.001]
[1762859465571,9.36123648,3573.7,3573.6,0.001]
[1762859465772,9.47337537,3573.7,3573.6,0.001]
[1762859467196,3.29022654,3573.2,3572.7,0.001]
[1762859467411,8.91392803,3573.2,3572.7,0.001]
[1762859467594,9.36582803,3573.2,3572.7,0.001]
[1762859467893,9.02608358,3573.2,3572.7,0.001]
[1762859468058,9.00878358,3573.2,3573.1,0.5056]
[1762859468696,9.45348358,3573.2,3573.1,0.011]
[1762859469888,4.05863721,3572.8,3572.7,0.001]
[1762859470099,9.33714136,3572.8,3572.7,0.001]
[1762859470515,9.92484136,3572.8,3572.7,0.001]
[1762859472166,9.92404136,3572.8,3572.7,0.001]
[1762859473375,10.32594136,3572.8,3572.7,0.001]
[1762859475490,10.32594136,3572.8,3572.1,0.011]
[1762859475491,2.79939533,3572.2,3572.1,0.011]
[1762859475702,12.60750097,3572.2,3572.1,0.011]
[1762859476014,8.89741148,3572.2,3572.1,0.5056]
[1762859476191,9.07981148,3572.2,3572.1,0.5056]
[1762859476786,9.07981148,3572.2,3572.1,0.011]
[1762859477216,9.52301148,3572.2,3572.1,0.011]
[1762859478612,9.07981148,3572.2,3572.1,0.011]
[1762859478988,8.43581148,3572.2,3572.1,0.011]
[1762859479184,4.73312199,3572.2,3572.1,1.1056]
[1762859479411,0.1824,3572.2,3572.1,1.1056]
[1762859479587,0.645,3572.2,3572.1,1.1056]
[1762859480318,3.44439533,3572.2,3572.1,1.1056]
[1762859482030,0.645,3572.2,3572.1,1.1056]
[1762859482336,3.70268949,3572.7,3572.1,1.1056]
[1762859482632,2.79916025,3572.5,3572.2,0.4578]
[1762859483251,3.70268949,3572.9,3572.4,0.4946]
[1762859483535,4.05861299,3572.9,3572.8,0.4946]
[1762859483743,4.70361299,3572.9,3572.8,0.4946]
[1762859484034,4.70361299,3572.9,3572.8,0.9524]
[1762859484699,8.40630248,3572.9,3572.8,0.4946]
[1762859485010,4.70361299,3572.9,3572.8,0.9524]
[1762859487145,2.300812,3572.9,3572.1,0.1532]
[1762859487452,2.79939533,3572.2,3572.1,0.1532]
[1762859487735,0.645,3572.2,3572.1,0.1532]
[1762859488039,3.44439533,3572.2,3572.1,0.6167]
[1762859488406,3.44439533,3572.2,3572.1,1.1161]
[1762859489915,1.259712,3572.8,3572.1,1.1161]
[1762859490115,1.259712,3572.8,3572.2,0.4994]
[1762859490116,2.79922358,3572.5,3572.2,0.4994]
[1762859490316,0.645,3572.4,3572.2,0.4994]
[1762859490649,0.645,3572.3,3572.2,0.4994]
[1762859490854,2.79910803,3572.6,3572.2,0.4994]
[1762859491060,3.70268949,3573.1,3572.5,0.4635]
[1762859491359,2.79900498,3572.7,3572.2,0.4994]
[1762859491516,1.259712,3573.2,3572.2,0.4994]
[1762859491517,3.44409458,3572.6,3572.2,1.49493183]
[1762859491840,0.645,3572.5,3572.2,1.49493183]
[1762859492042,0.645,3572.5,3572.3,0.4994]
[1762859492250,0.645,3572.5,3572.4,0.4635]
[1762859492630,0.645,3572.5,3572.4,0.9629]
[1762859496326,0.6442,3572.5,3572.4,0.9629]
[1762859497445,3.44336025,3572.5,3572.4,0.9629]
[1762859498236,0.6442,3572.5,3572.4,0.9629]
[1762859499366,2.80102445,3572.7,3572.4,0.9629]
[1762859499569,0.002,3572.7,3572.6,0.4635]
[1762859499762,0.646,3572.7,3572.6,0.4635]
[1762859499961,0.646,3572.7,3572.6,0.9629]
[1762859500882,0.002,3572.7,3572.6,0.9629]
[1762859501052,0.646,3572.7,3572.6,0.9629]
[1762859501447,0.002,3572.7,3572.6,4.54370751]
[1762859503976,0.002,3572.7,3572.6,1.74462561]
[1762859504140,0.002,3572.7,3572.6,1.368404]
[1762859504567,3.44500355,3572.7,3572.6,0.9629]
[1762859505609,0.646,3572.7,3572.6,0.9629]
[1762859505893,0.002,3572.7,3572.6,0.4635]
[1762859506092,0.646,3572.7,3572.6,0.9629]
[1762859506298,3.44500355,3572.7,3572.6,0.9629]
[1762859506502,0.646,3572.7,3572.6,0.9629]
[1762859506662,3.44500355,3572.7,3572.6,0.4635]
[1762859507404,0.646,3572.7,3572.6,0.9629]
[1762859511603,0.646,3572.7,3572.6,1.33910853]
[1762859511974,0.646,3572.7,3572.6,0.9629]
[1762859512180,0.646,3572.7,3572.6,1.368404]
[1762859512781,0.002,3572.7,3572.6,1.368404]
[1762859513101,0.646,3572.7,3572.6,1.368404]
[1762859513274,0.002,3572.7,3572.6,1.368404]
[1762859513487,0.646,3572.7,3572.6,1.368404]
[1762859513815,0.002,3572.7,3572.6,1.368404]
[1762859513980,0.646,3572.7,3572.6,1.368404]
[1762859519418,0.646,3572.7,3572.6,0.869004]
[1762859519645,3.88690355,3572.7,3572.4,0.001]
[1762859519944,2.799133,3572.6,3572.4,0.001]
[1762859520148,2.798333,3572.6,3572.4,0.001]
[1762859520350,2.798333,3572.6,3572.5,0.4647]
[1762859520550,3.24106025,3572.5,3572.4,0.001]
[1762859521056,3.70876025,3572.5,3572.4,0.001]
[1762859521210,4.20037491,3572.5,3572.4,0.001]
[1762859524308,0.002,3572.7,3572.4,0.001]
[1762859524544,0.002,3572.7,3572.6,0.4647]
[1762859524545,4.06075868,3572.7,3572.6,0.4647]
[1762859524752,4.70475868,3572.7,3572.6,0.4647]
[1762859524951,2.79916025,3572.5,3572.4,0.001]
[1762859525350,0.002,3572.7,3572.6,0.4647]
[1762859525557,0.646,3572.7,3572.6,0.4647]
[1762859525950,3.44500355,3572.7,3572.6,0.4647]
[1762859527564,0.646,3572.7,3572.6,0.4647]
[1762859527941,3.44500355,3572.7,3572.6,0.4647]
[1762859528365,0.002,3572.7,3572.6,0.4647]
[1762859528664,0.646,3572.7,3572.6,0.4647]
[1762859528863,0.002,3572.7,3572.6,0.4647]
[1762859529063,0.646,3572.7,3572.6,0.9447]
[1762859529570,2.80100355,3572.7,3572.6,0.9447]
[1762859529744,3.44500355,3572.7,3572.5,0.001]
[1762859530064,3.44500355,3572.7,3572.6,0.4647]
[1762859530269,0.646,3572.7,3572.6,0.4647]
[1762859530818,3.44500355,3572.7,3572.6,0.4647]
[1762859530971,2.7990819,3572.6,3572.5,0.001]
[1762859532085,3.2409819,3572.6,3572.5,0.001]
[1762859532640,2.7990819,3572.6,3572.5,0.001]
[1762859533179,2.7990819,3572.6,3572.5,0.4657]
[1762859533535,2.7990819,3572.6,3572.5,0.001]
[1762859533536,3.2409819,3572.6,3572.5,0.001]
[1762859533785,3.73259656,3572.6,3572.5,0.001]
[1762859534077,4.20029656,3572.6,3572.5,0.001]
[1762859534256,5.46000856,3572.6,3572.5,0.001]
[1762859544211,5.45920856,3572.6,3572.5,0.001]
[1762859545909,5.46120856,3572.6,3572.5,0.001]
[1762859546709,4.99350856,3572.6,3572.5,0.001]
[1762859547021,5.63750856,3572.6,3572.5,0.001]
[1762859547490,6.10520856,3572.6,3572.5,0.001]
[1762859548986,5.63750856,3572.6,3572.5,0.001]
[1762859549595,6.10520856,3572.6,3572.5,0.001]
[1762859550731,4.7039939,3572.6,3572.5,0.001]
[1762859550936,4.7039939,3572.6,3572.5,0.4566]
[1762859551101,4.7039939,3572.6,3572.5,0.9117]
[1762859551499,3.4442819,3572.6,3572.5,0.9117]
[1762859552302,2.8002819,3572.6,3572.5,0.9117]
[1762859552539,3.4442819,3572.6,3572.5,0.9117]
[1762859553238,3.4442819,3572.6,3572.5,0.4566]
[1762859553538,3.4442819,3572.6,3572.5,0.9117]
[1762859554328,0.646,3572.6,3572.5,0.9117]
[1762859554540,3.4450819,3572.6,3572.5,0.9117]
[1762859555117,2.8010819,3572.6,3572.5,0.9117]
[1762859555320,3.4450819,3572.6,3572.5,0.9117]
[1762859556019,3.4450819,3572.6,3572.5,0.4566]
[1762859556721,3.4450819,3572.6,3572.5,0.9117]
[1762859558336,2.8010819,3572.6,3572.5,0.9117]
[1762859558539,3.4450819,3572.6,3572.5,0.9117]
[1762859559350,0.646,3572.6,3572.5,0.9117]
[1762859560809,0.002,3572.6,3572.5,1.317204]
[1762859561010,0.646,3572.6,3572.5,1.317204]
[1762859561346,0.646,3572.6,3572.5,1.63828403]
[1762859561509,0.646,3572.6,3572.5,1.317204]
[1762859561859,0.002,3572.6,3572.5,1.317204]
[1762859562039,0.002,3572.6,3572.5,4.11636425]
[1762859562574,0.002,3572.6,3572.5,4.14435585]
[1762859562859,0.002,3572.6,3572.5,4.11636425]
[1762859563012,0.002,3572.6,3572.5,5.17867609]
[1762859565780,0.002,3572.7,3572.6,2.7990819]
[1762859565949,0.002,3573.0,3572.9,6.91080151]
[1762859566269,0.002,3573.0,3572.9,7.36640151]
[1762859566473,0.002,3573.0,3572.9,7.82150151]
[1762859566677,0.002,3573.0,3572.9,9.22785361]
[1762859567287,0.002,3573.0,3572.9,10.48756561]
[1762859568241,0.0012,3573.0,3572.9,10.48756561]
[1762859568978,0.644,3573.8,3572.9,10.48756561]
[1762859568979,0.01,3574.9,3574.4,0.638]
[1762859569203,0.01,3574.9,3574.8,4.91817529]
[1762859569508,0.01,3574.9,3574.8,8.62462593]
[1762859569790,0.01,3574.9,3574.8,9.19174956]
[1762859569938,0.01,3574.9,3574.8,10.7348355]
[1762859571464,0.01,3574.9,3574.8,11.30056778]
[1762859571869,0.01,3574.9,3574.8,7.59411714]
[1762859572183,0.01,3574.9,3574.8,8.24211714]
[1762859575050,0.01,3574.9,3574.8,11.94856778]
[1762859575985,0.01,3574.9,3574.8,8.24211714]
[1762859576149,0.01,3574.9,3574.8,11.94856778]
[1762859577896,0.01,3574.9,3574.8,8.24211714]
[1762859578255,0.01,3574.9,3574.8,11.94856778]
[1762859579724,0.01,3574.9,3574.8,8.24211714]
[1762859580292,0.01,3574.9,3574.8,7.13901714]
[1762859580492,0.4688,3574.9,3574.5,0.001]
[1762859580825,0.4584,3574.6,3574.5,0.001]
[1762859580991,0.95001466,3574.6,3574.5,0.001]
[1762859581189,0.49161466,3574.8,3574.5,0.4958]
[1762859581415,0.87461466,3574.8,3574.5,0.4958]
[1762859581725,0.4584,3574.6,3574.5,0.001]
[1762859582095,1.43461466,3574.6,3574.5,0.001]
[1762859583513,1.43461466,3574.6,3574.5,0.406504]
[1762859583722,0.95001466,3574.6,3574.5,3.20409806]
[1762859584508,0.95001466,3574.6,3574.5,0.406504]
[1762859584703,1.13861466,3574.7,3574.6,0.405504]
[1762859584929,1.13861466,3574.7,3574.6,3.2030198]
[1762859585226,1.59701466,3574.7,3574.6,3.2030198]
[1762859586237,1.59701466,3574.7,3574.6,0.405504]
[1762859586593,1.59701466,3574.7,3574.6,3.2030198]
[1762859586825,1.59701466,3574.7,3574.6,0.405504]
[1762859587030,2.08161466,3574.7,3574.5,0.001]
[1762859587330,0.0048,3574.6,3574.5,0.001]
[1762859587691,0.4897,3574.6,3574.5,0.001]
[1762859588335,0.0048,3574.6,3574.5,0.001]
[1762859588505,0.0048,3574.6,3574.5,0.406504]
[1762859588901,0.0048,3574.6,3574.5,2.79859406]
[1762859589102,0.0048,3574.6,3574.5,0.406504]
[1762859591935,0.4897,3574.6,3574.5,0.406504]
[1762859592095,0.98051466,3574.6,3574.5,0.406504]
[1762859592500,0.49561466,3574.6,3574.5,0.406504]
[1762859592695,1.14261466,3574.6,3574.5,0.406504]
[1762859593002,1.62751466,3574.6,3574.5,0.406504]
[1762859594039,4.84235064,3574.6,3574.5,0.001]
[1762859594337,8.1314811,3574.6,3574.5,0.001]
[1762859597406,4.42503046,3574.6,3574.5,0.001]
[1762859597601,8.1314811,3574.6,3574.5,0.001]
[1762859598312,7.4844811,3574.6,3574.5,0.001]
[1762859598529,4.42603046,3574.6,3574.5,0.001]
[1762859599430,8.1324811,3574.6,3574.5,0.001]
[1762859601825,9.3921931,3574.6,3574.5,0.001]
[1762859603442,13.09864374,3574.6,3574.5,0.001]
[1762859603739,4.54915554,3574.2,3574.1,0.001]
[1762859603945,13.06245682,3574.2,3574.1,0.001]
[1762859604141,13.54735682,3574.2,3574.1,0.001]
[1762859604443,9.84090618,3574.2,3574.1,0.001]
[1762859604849,9.19490618,3574.2,3574.1,0.001]
[1762859605051,9.84090618,3574.2,3574.1,0.001]
[1762859608124,9.19490618,3574.2,3574.1,0.001]
[1762859608326,5.69385554,3574.2,3574.1,0.001]
[1762859608651,4.87794354,3574.2,3574.1,0.001]
[1762859612846,4.43414354,3574.2,3574.1,0.001]
[1762859613753,4.87794354,3574.2,3574.1,0.001]
[1762859614477,0.01347969,3776.5,3574.5,0.3789]
[1762859614478,0.002,3575.0,3574.5,0.3789]
[1762859614778,0.002,3575.0,3574.9,4.82939704]
[1762859614959,0.002,3575.4,3575.2,4.46226231]
[1762859615137,0.012,3575.9,3575.6,4.46194941]
[1762859615477,0.012,3575.9,3575.6,8.89820005]
[1762859616362,0.0012,3575.7,3575.6,8.89820005]
[1762859616559,0.0012,3575.7,3575.6,10.34739982]
[1762859616977,0.0012,3575.7,3575.6,6.64094918]
[1762859617281,0.0012,3575.7,3575.6,7.03065464]
[1762859617684,0.0012,3575.7,3575.6,7.1426629]
[1762859617883,0.0012,3575.7,3575.6,6.75295744]
[1762859619956,0.012,3575.9,3575.8,4.46179298]
[1762859620172,0.012,3575.9,3575.8,10.45867198]
[1762859620378,0.012,3575.9,3575.8,10.79560622]
[1762859621086,0.01,3576.9,3576.2,4.46148019]
[1762859621251,0.01,3576.9,3576.2,4.82638019]
[1762859621460,0.01,3576.9,3576.2,5.19128019]
[1762859621646,0.01,3576.9,3576.2,6.26969398]
[1762859623876,3.48160181,3577.9,3576.8,0.770404]
[1762859623877,0.0092,3577.9,3576.8,0.770404]
[1762859624081,0.0092,3577.9,3577.8,3.74721769]
[1762859624584,0.0092,3577.9,3577.8,4.11211769]
[1762859625204,0.0092,3577.9,3577.8,0.952204]
[1762859625400,0.0092,3577.9,3577.8,3.56541769]
[1762859625591,0.0092,3577.9,3577.8,4.26921645]
[1762859626991,0.0092,3577.9,3577.8,3.90431645]
[1762859628577,0.0092,3577.9,3577.8,4.26921645]
[1762859629303,0.0092,3577.9,3577.8,4.63411645]
[1762859630810,0.0092,3577.9,3577.8,4.26921645]
[1762859631704,0.0092,3577.9,3577.8,3.90431645]
[1762859632109,0.0092,3577.9,3577.8,1.10930276]
[1762859632409,0.0092,3577.9,3577.8,3.20051769]
[1762859632410,0.5079,3577.9,3577.8,3.20051769]
[1762859633274,0.5079,3577.9,3577.8,0.405504]
[1762859633714,0.5079,3577.9,3577.8,3.20051769]